[Event "Chpt France Universitaire 2024"]
[Site "Bastia, France"]
[Date "2024.04.06"]
[Round "6.7"]
[White "Defromont, Benjamin"]
[Black "Destic, Elena"]
[Result "1-0"]
[TimeControl "15min+5s"]
[WhiteElo "2393"]
[BlackElo "1946"]

1. e4 {[%clk 00:15:05]} {[%emt 00:00:01]} c6 {[%clk 00:15:05]} {[%emt
00:00:02]} 2. Nf3 {[%clk 00:15:05]} {[%emt 00:00:05]} d5 {[%clk 00:15:05]}
{[%emt 00:00:03]} 3. d3 {[%clk 00:15:03]} {[%emt 00:00:07]} dxe4 {[%clk
00:15:02]} {[%emt 00:00:08]} 4. dxe4 {[%clk 00:15:03]} {[%emt 00:00:02]} Qxd1+
{[%clk 00:14:59]} {[%emt 00:00:09]} 5. Kxd1 {[%clk 00:15:03]} {[%emt 00:00:04]}
Bg4 {[%clk 00:14:59]} {[%emt 00:00:04]} 6. Be2 {[%clk 00:15:03]} {[%emt
00:00:04]} g6 {[%clk 00:14:57]} {[%emt 00:00:08]} 7. Ne5 {[%clk 00:14:35]}
{[%emt 00:00:33]} Bxe2+ {[%clk 00:14:44]} {[%emt 00:00:18]} 8. Kxe2 {[%clk
00:14:35]} {[%emt 00:00:02]} Bg7 {[%clk 00:14:41]} {[%emt 00:00:08]} 9. Nd3
{[%clk 00:14:35]} {[%emt 00:00:03]} Na6 {[%clk 00:14:24]} {[%emt 00:00:22]} 10.
Be3 {[%clk 00:13:58]} {[%emt 00:00:42]} Nf6 {[%clk 00:12:13]} {[%emt 00:02:17]}
11. f3 {[%clk 00:13:58]} {[%emt 00:00:01]} Nd7 {[%clk 00:11:56]} {[%emt
00:00:22]} 12. Nd2 {[%clk 00:13:49]} {[%emt 00:00:14]} h5 {[%clk 00:10:58]}
{[%emt 00:01:03]} 13. Nc4 {[%clk 00:13:21]} {[%emt 00:00:33]} b6 {[%clk
00:09:17]} {[%emt 00:01:46]} 14. a4 {[%clk 00:13:13]} {[%emt 00:00:12]} Bh6
{[%clk 00:08:50]} {[%emt 00:00:33]} 15. Bf2 {[%clk 00:13:13]} {[%emt 00:00:03]}
Rd8 {[%clk 00:08:25]} {[%emt 00:00:30]} 16. Rhd1 {[%clk 00:13:10]} {[%emt
00:00:08]} f6 {[%clk 00:07:55]} {[%emt 00:00:35]} 17. b4 {[%clk 00:12:42]}
{[%emt 00:00:33]} Nc7 {[%clk 00:07:22]} {[%emt 00:00:38]} 18. a5 {[%clk
00:12:18]} {[%emt 00:00:30]} b5 {[%clk 00:07:17]} {[%emt 00:00:10]} 19. Ncb2
{[%clk 00:12:18]} {[%emt 00:00:01]} a6 {[%clk 00:07:13]} {[%emt 00:00:09]} 20.
Bb6 {[%clk 00:12:13]} {[%emt 00:00:09]} Rc8 {[%clk 00:06:57]} {[%emt 00:00:22]}
21. Nc5 {[%clk 00:10:20]} {[%emt 00:01:58]} Nxc5 {[%clk 00:06:52]} {[%emt
00:00:09]} 22. bxc5 {[%clk 00:09:39]} {[%emt 00:00:46]} Kf7 {[%clk 00:06:15]}
{[%emt 00:00:43]} 23. Nd3 {[%clk 00:09:39]} {[%emt 00:00:04]} Ne6 {[%clk
00:06:15]} {[%emt 00:00:04]} 24. Nb4 {[%clk 00:09:35]} {[%emt 00:00:08]} Bf4
{[%clk 00:05:52]} {[%emt 00:00:27]} 25. Nxa6 {[%clk 00:08:40]} {[%emt
00:01:01]} Bxh2 {[%clk 00:05:38]} {[%emt 00:00:19]} 26. Nb4 {[%clk 00:08:37]}
{[%emt 00:00:08]} Be5 {[%clk 00:05:17]} {[%emt 00:00:26]} 27. Ra3 {[%clk
00:08:26]} {[%emt 00:00:16]} h4 {[%clk 00:04:44]} {[%emt 00:00:39]} 28. Rh1
{[%clk 00:08:03]} {[%emt 00:00:27]} Nf4+ {[%clk 00:04:30]} {[%emt 00:00:19]} 29.
Kf1 {[%clk 00:07:50]} {[%emt 00:00:18]} Nh5 {[%clk 00:03:30]} {[%emt 00:01:05]}
30. Rh3 {[%clk 00:06:17]} {[%emt 00:01:38]} Nf4 {[%clk 00:03:29]} {[%emt
00:00:07]} 31. a6 {[%clk 00:06:13]} {[%emt 00:00:09]} Nxh3 {[%clk 00:03:16]}
{[%emt 00:00:17]} 32. gxh3 {[%clk 00:06:13]} {[%emt 00:00:01]} Bb8 {[%clk
00:03:09]} {[%emt 00:00:12]} 33. a7 {[%clk 00:06:13]} {[%emt 00:00:05]} Bxa7
{[%clk 00:03:09]} {[%emt 00:00:02]} 34. Rxa7 {[%clk 00:06:13]} {[%emt
00:00:04]} Ke6 {[%clk 00:02:37]} {[%emt 00:00:37]} 35. Kf2 {[%clk 00:06:09]}
{[%emt 00:00:09]} Ra8 {[%clk 00:02:35]} {[%emt 00:00:08]} 36. Nxc6 {[%clk
00:06:09]} {[%emt 00:00:04]} Rxa7 {[%clk 00:02:35]} {[%emt 00:00:02]} 37. Nxa7
{[%clk 00:05:59]} {[%emt 00:00:14]} Rb8 {[%clk 00:00:39]} {[%emt 00:02:01]} 38.
c6 {[%clk 00:05:55]} {[%emt 00:00:09]} Kd5 {[%emt 00:00:05]} 1-0

[Event "Chpt France Universitaire 2024"]
[Site "Bastia, France"]
[Date "2024.04.06"]
[Round "6.8"]
[White "Gadimov, Emil"]
[Black "Gryshko, Vitalii"]
[Result "0-1"]
[TimeControl "15min+5s"]
[WhiteElo "1701"]
[BlackElo "2288"]

1. e4 {[%clk 00:15:05]} c5 {[%clk 00:15:05]} 2. Nf3 {[%emt 00:00:02]} d6 3. Nc3
{[%clk 00:15:03]} {[%emt 00:00:07]} e5 {[%clk 00:15:05]} {[%emt 00:00:01]} 4.
Bc4 {[%clk 00:14:55]} {[%emt 00:00:13]} Be7 {[%clk 00:15:05]} 5. Nd5 {[%clk
00:14:53]} {[%emt 00:00:08]} Nf6 {[%clk 00:15:03]} {[%emt 00:00:07]} 6. d3
{[%clk 00:14:47]} {[%emt 00:00:12]} O-O {[%clk 00:14:49]} {[%emt 00:00:19]} 7.
h3 {[%clk 00:14:47]} {[%emt 00:00:04]} Nxd5 {[%clk 00:14:42]} {[%emt 00:00:13]}
8. Bxd5 {[%clk 00:14:47]} {[%emt 00:00:02]} Nd7 {[%clk 00:14:42]} {[%emt
00:00:01]} 9. O-O {[%clk 00:14:46]} Nf6 {[%clk 00:14:42]} {[%emt 00:00:10]} 10.
Bb3 {[%clk 00:14:44]} h6 {[%clk 00:14:42]} {[%emt 00:00:10]} 11. c3 {[%clk
00:14:34]} b5 {[%emt 00:00:18]} 12. Qe2 Bb7 13. Re1 c4 14. dxc4 bxc4 {[%clk
00:14:42]} 15. Qxc4 {[%clk 00:13:22]} Bxe4 {[%clk 00:14:13]} {[%emt 00:03:45]}
16. Be3 {[%clk 00:10:28]} {[%emt 00:01:28]} Qd7 {[%clk 00:13:27]} {[%emt
00:00:54]} 17. Qe2 {[%clk 00:10:11]} {[%emt 00:00:22]} Qf5 {[%clk 00:13:27]}
{[%emt 00:00:05]} 18. Nh4 {[%clk 00:09:54]} {[%emt 00:00:21]} Qh7 {[%clk
00:13:27]} {[%emt 00:00:04]} 19. Rac1 {[%clk 00:09:18]} {[%emt 00:00:43]} a5
{[%clk 00:13:26]} {[%emt 00:00:06]} 20. f3 {[%clk 00:08:55]} {[%emt 00:00:28]}
Bd3 {[%clk 00:13:09]} {[%emt 00:00:21]} 21. Qd2 {[%clk 00:08:39]} {[%emt
00:00:22]} Nd7 {[%clk 00:13:09]} {[%emt 00:00:02]} 22. Rcd1 {[%clk 00:08:20]}
{[%emt 00:00:24]} Bxh4 {[%clk 00:13:05]} {[%emt 00:00:08]} 23. Bf2 {[%clk
00:07:08]} {[%emt 00:01:18]} Bxf2+ {[%clk 00:13:05]} {[%emt 00:00:03]} 24. Kxf2
{[%clk 00:07:08]} {[%emt 00:00:02]} Nc5 {[%clk 00:13:05]} 25. Bd5 {[%clk
00:07:07]} {[%emt 00:00:07]} Rab8 {[%clk 00:13:05]} {[%emt 00:00:03]} 26. b4
{[%clk 00:07:07]} {[%emt 00:00:03]} axb4 {[%clk 00:13:05]} {[%emt 00:00:04]} 27.
cxb4 {[%clk 00:07:07]} {[%emt 00:00:02]} Bc2 {[%clk 00:13:05]} {[%emt
00:00:01]} 28. bxc5 {[%clk 00:06:55]} {[%emt 00:00:17]} Bxd1 {[%clk 00:13:05]}
{[%emt 00:00:02]} 29. Rxd1 {[%clk 00:06:23]} {[%emt 00:00:37]} dxc5 {[%clk
00:13:05]} {[%emt 00:00:02]} 30. Be4 {[%clk 00:06:23]} {[%emt 00:00:02]} f5
{[%clk 00:13:05]} {[%emt 00:00:04]} 31. Qd5+ {[%clk 00:05:56]} {[%emt
00:00:31]} Kh8 {[%clk 00:13:05]} {[%emt 00:00:01]} 32. Bc2 {[%clk 00:05:55]}
{[%emt 00:00:06]} Qg8 {[%clk 00:12:58]} {[%emt 00:00:12]} 33. Bb3 {[%clk
00:05:29]} {[%emt 00:00:32]} Qxd5 {[%clk 00:12:53]} {[%emt 00:00:09]} 34. Rxd5
{[%clk 00:05:29]} {[%emt 00:00:02]} Rfc8 {[%clk 00:12:53]} {[%emt 00:00:03]} 35.
Rxe5 {[%clk 00:05:21]} {[%emt 00:00:14]} c4 {[%clk 00:12:53]} 36. Bc2 {[%clk
00:04:46]} {[%emt 00:00:39]} Rb2 {[%clk 00:12:53]} {[%emt 00:00:01]} 37. Re2
{[%clk 00:04:46]} {[%emt 00:00:02]} Rxa2 {[%clk 00:12:52]} {[%emt 00:00:06]} 38.
Bxf5 {[%clk 00:04:46]} {[%emt 00:00:03]} Rxe2+ {[%clk 00:12:52]} {[%emt
00:00:04]} 39. Kxe2 {[%clk 00:04:46]} {[%emt 00:00:02]} Rd8 {[%clk 00:12:52]}
{[%emt 00:00:05]} 40. g4 {[%clk 00:04:04]} {[%emt 00:00:47]} g5 {[%clk
00:12:46]} {[%emt 00:00:10]} 41. Ke3 {[%clk 00:03:52]} {[%emt 00:00:18]} Rd1
{[%clk 00:12:46]} {[%emt 00:00:05]} 42. Bc2 {[%clk 00:03:39]} {[%emt 00:00:18]}
Rd6 {[%clk 00:12:29]} {[%emt 00:00:22]} 43. f4 {[%clk 00:03:34]} {[%emt
00:00:10]} gxf4+ {[%clk 00:12:28]} {[%emt 00:00:05]} 44. Kxf4 {[%clk 00:03:34]}
{[%emt 00:00:02]} Re6 {[%clk 00:12:15]} {[%emt 00:00:18]} 45. Kf3 {[%clk
00:03:23]} {[%emt 00:00:16]} Kg7 {[%clk 00:12:12]} {[%emt 00:00:08]} 46. h4
{[%clk 00:03:23]} {[%emt 00:00:02]} c3 {[%clk 00:12:12]} {[%emt 00:00:04]} 47.
g5 {[%clk 00:03:09]} {[%emt 00:00:20]} h5 {[%clk 00:12:12]} {[%emt 00:00:03]}
48. Kf2 {[%clk 00:02:49]} {[%emt 00:00:25]} Re5 {[%clk 00:12:12]} {[%emt
00:00:06]} 49. Kf3 {[%clk 00:02:49]} {[%emt 00:00:05]} Re1 {[%clk 00:12:12]}
{[%emt 00:00:01]} 50. Bd3 {[%clk 00:02:41]} {[%emt 00:00:11]} Rh1 {[%clk
00:12:12]} {[%emt 00:00:05]} 51. Ke2 {[%clk 00:01:12]} {[%emt 00:01:35]} Rxh4
{[%clk 00:12:12]} {[%emt 00:00:02]} 52. Kd1 {[%clk 00:01:12]} {[%emt 00:00:01]}
Rd4 {[%clk 00:12:12]} {[%emt 00:00:05]} 53. Kc2 {[%clk 00:01:12]} {[%emt
00:00:01]} Rxd3 {[%clk 00:12:12]} {[%emt 00:00:02]} 54. Kxd3 {[%clk 00:01:12]}
{[%emt 00:00:01]} h4 {[%clk 00:12:12]} 55. Kxc3 {[%clk 00:01:12]} {[%emt
00:00:01]} h3 {[%clk 00:12:12]} 56. Kd4 {[%emt 00:00:05]} 0-1

[Event "Chpt France Universitaire 2024"]
[Site "Bastia, France"]
[Date "2024.04.06"]
[Round "6.9"]
[White "Cahen, Alexis"]
[Black "Bosc, Seraphina"]
[Result "1-0"]
[TimeControl "15min+5s"]
[WhiteElo "2060"]
[BlackElo "2216"]

1. d4 {[%clk 00:15:05]} {[%emt 00:00:01]} d5 {[%clk 00:15:05]} {[%emt
00:00:02]} 2. Bf4 {[%clk 00:15:05]} {[%emt 00:00:02]} Nf6 {[%clk 00:15:05]}
{[%emt 00:00:06]} 3. e3 {[%clk 00:15:05]} {[%emt 00:00:02]} e6 {[%clk
00:15:04]} {[%emt 00:00:06]} 4. Nf3 {[%clk 00:15:03]} {[%emt 00:00:07]} c5
{[%clk 00:14:56]} {[%emt 00:00:13]} 5. c3 {[%clk 00:15:03]} {[%emt 00:00:01]}
Nc6 {[%clk 00:14:56]} {[%emt 00:00:03]} 6. Nbd2 {[%clk 00:14:50]} {[%emt
00:00:19]} Nh5 {[%clk 00:14:19]} {[%emt 00:00:43]} 7. Bg3 {[%clk 00:14:13]}
{[%emt 00:00:41]} Nxg3 {[%clk 00:14:03]} {[%emt 00:00:21]} 8. hxg3 {[%clk
00:14:13]} {[%emt 00:00:02]} Bd7 {[%clk 00:13:58]} {[%emt 00:00:11]} 9. Bd3
{[%clk 00:14:11]} {[%emt 00:00:05]} g6 {[%clk 00:13:55]} {[%emt 00:00:09]} 10.
e4 {[%clk 00:12:46]} {[%emt 00:01:30]} cxd4 {[%clk 00:13:46]} {[%emt 00:00:15]}
11. cxd4 {[%clk 00:12:17]} {[%emt 00:00:34]} Nb4 {[%clk 00:13:11]} {[%emt
00:00:40]} 12. Qe2 {[%clk 00:11:22]} {[%emt 00:00:59]} Nxd3+ {[%clk 00:13:00]}
{[%emt 00:00:17]} 13. Qxd3 {[%clk 00:11:22]} {[%emt 00:00:01]} dxe4 {[%clk
00:12:51]} {[%emt 00:00:15]} 14. Qxe4 {[%clk 00:10:06]} {[%emt 00:01:21]} Bg7
{[%clk 00:11:10]} {[%emt 00:01:45]} 15. Ne5 {[%clk 00:09:48]} {[%emt 00:00:23]}
O-O {[%clk 00:10:37]} {[%emt 00:00:38]} 16. O-O {[%clk 00:09:20]} {[%emt
00:00:32]} Bb5 {[%clk 00:10:04]} {[%emt 00:00:39]} 17. Rfc1 {[%clk 00:08:52]}
{[%emt 00:00:33]} b6 {[%clk 00:07:17]} {[%emt 00:02:53]} 18. Ndf3 {[%clk
00:08:38]} {[%emt 00:00:19]} Rc8 {[%clk 00:06:26]} {[%emt 00:00:56]} 19. Qb7
{[%clk 00:07:36]} {[%emt 00:01:07]} Bxe5 {[%clk 00:03:50]} {[%emt 00:02:41]} 20.
dxe5 {[%clk 00:07:15]} {[%emt 00:00:26]} Qd7 {[%clk 00:03:39]} {[%emt
00:00:16]} 21. Qe4 {[%clk 00:06:29]} {[%emt 00:00:50]} Bc6 {[%clk 00:03:33]}
{[%emt 00:00:12]} 22. Qh4 {[%clk 00:05:32]} {[%emt 00:01:02]} Bxf3 {[%clk
00:03:33]} {[%emt 00:00:04]} 23. gxf3 {[%clk 00:05:32]} Rxc1+ {[%clk 00:03:22]}
{[%emt 00:00:16]} 24. Rxc1 {[%clk 00:05:32]} {[%emt 00:00:02]} Qd2 {[%clk
00:02:38]} {[%emt 00:00:49]} 25. Rc4 {[%clk 00:03:11]} {[%emt 00:02:26]} Qe1+
{[%clk 00:02:00]} {[%emt 00:00:42]} 26. Kg2 {[%clk 00:03:11]} {[%emt 00:00:03]}
Qxe5 {[%clk 00:02:00]} {[%emt 00:00:02]} 27. Qe7 {[%clk 00:03:02]} {[%emt
00:00:13]} Qxb2 {[%clk 00:01:41]} {[%emt 00:00:25]} 28. Qxa7 {[%clk 00:03:02]}
{[%emt 00:00:04]} b5 {[%clk 00:01:08]} {[%emt 00:00:38]} 29. Rc7 {[%clk
00:03:01]} {[%emt 00:00:06]} Qf6 {[%clk 00:01:01]} {[%emt 00:00:11]} 30. Qb6
{[%clk 00:02:35]} {[%emt 00:00:31]} Ra8 {[%clk 00:00:25]} {[%emt 00:00:42]} 31.
Qc6 {[%clk 00:01:55]} {[%emt 00:00:45]} Rb8 {[%clk 00:00:17]} {[%emt 00:00:12]}
32. Qd6 {[%clk 00:01:42]} {[%emt 00:00:19]} Qf5 {[%clk 00:00:10]} {[%emt
00:00:12]} 33. Rc5 {[%clk 00:01:23]} {[%emt 00:00:24]} 1-0

[Event "Chpt France Universitaire 2024"]
[Site "Bastia, France"]
[Date "2024.04.06"]
[Round "6.10"]
[White "Baroyan, Davit"]
[Black "Lahoche, Dorian"]
[Result "1-0"]
[TimeControl "15min+5s"]
[WhiteElo "2118"]
[BlackElo "2146"]

1. Nf3 {[%clk 00:15:05]} {[%emt 00:00:01]} Nf6 {[%clk 00:15:05]} {[%emt
00:00:01]} 2. g3 {[%clk 00:15:05]} {[%emt 00:00:01]} g6 {[%clk 00:15:05]} 3. b3
{[%clk 00:15:05]} Bg7 {[%clk 00:15:05]} {[%emt 00:00:02]} 4. Bb2 {[%clk
00:15:05]} O-O {[%clk 00:15:05]} {[%emt 00:00:03]} 5. Bg2 {[%clk 00:15:05]} d6
{[%clk 00:15:05]} {[%emt 00:00:03]} 6. d4 {[%clk 00:15:05]} Nc6 {[%clk
00:15:05]} {[%emt 00:00:06]} 7. O-O {[%clk 00:15:05]} {[%emt 00:00:06]} a6
{[%clk 00:15:05]} {[%emt 00:00:02]} 8. c4 {[%clk 00:15:02]} {[%emt 00:00:09]}
Rb8 {[%clk 00:15:05]} {[%emt 00:00:02]} 9. d5 {[%clk 00:13:57]} {[%emt
00:01:10]} Na5 {[%clk 00:15:05]} {[%emt 00:00:02]} 10. Qe1 {[%clk 00:13:38]}
{[%emt 00:00:25]} c5 {[%clk 00:15:02]} {[%emt 00:00:08]} 11. Bc3 {[%clk
00:13:34]} {[%emt 00:00:10]} b6 {[%clk 00:15:02]} {[%emt 00:00:01]} 12. Nbd2
{[%clk 00:13:20]} {[%emt 00:00:18]} e6 {[%clk 00:14:35]} {[%emt 00:00:32]} 13.
dxe6 {[%clk 00:12:54]} {[%emt 00:00:32]} Bxe6 {[%clk 00:14:32]} {[%emt
00:00:08]} 14. Rd1 {[%clk 00:12:48]} {[%emt 00:00:11]} h6 {[%clk 00:14:21]}
{[%emt 00:00:15]} 15. Bxf6 {[%clk 00:12:26]} {[%emt 00:00:28]} Bxf6 {[%clk
00:14:15]} {[%emt 00:00:10]} 16. Ne4 {[%clk 00:12:26]} {[%emt 00:00:01]} Be7
{[%clk 00:14:12]} {[%emt 00:00:08]} 17. Qd2 {[%clk 00:12:26]} {[%emt 00:00:02]}
Qc7 {[%clk 00:14:00]} {[%emt 00:00:16]} 18. Qxh6 {[%clk 00:12:25]} {[%emt
00:00:06]} Bf5 {[%clk 00:11:39]} {[%emt 00:02:26]} 19. Nfg5 {[%clk 00:12:23]}
{[%emt 00:00:08]} Bxg5 {[%clk 00:11:39]} {[%emt 00:00:02]} 20. Nxg5 {[%clk
00:12:23]} {[%emt 00:00:02]} f6 {[%clk 00:11:39]} {[%emt 00:00:02]} 21. Bd5+
{[%clk 00:12:23]} {[%emt 00:00:03]} 1-0

[Event "Chpt France Universitaire 2024"]
[Site "Bastia, France"]
[Date "2024.04.06"]
[Round "6.11"]
[White "Hingouet, Matthieu"]
[Black "Morison, Julien"]
[Result "0-1"]
[TimeControl "15min+5s"]
[WhiteElo "2210"]
[BlackElo "1926"]

1. d4 {[%clk 00:15:05]} {[%emt 00:00:02]} Nf6 {[%clk 00:15:05]} 2. c4 {[%clk
00:15:05]} {[%emt 00:00:02]} g6 {[%clk 00:15:05]} 3. Nc3 {[%clk 00:15:05]}
{[%emt 00:00:05]} d5 {[%clk 00:15:05]} 4. cxd5 {[%clk 00:15:05]} {[%emt
00:00:04]} Nxd5 {[%clk 00:15:05]} {[%emt 00:00:01]} 5. Bd2 {[%clk 00:15:04]}
{[%emt 00:00:07]} Bg7 {[%clk 00:15:05]} {[%emt 00:00:02]} 6. e4 {[%clk
00:15:04]} Nb6 {[%clk 00:15:05]} {[%emt 00:00:07]} 7. Be3 {[%clk 00:14:55]}
{[%emt 00:00:14]} Nc6 {[%clk 00:15:05]} {[%emt 00:00:03]} 8. Nf3 {[%clk
00:13:01]} {[%emt 00:01:58]} Bg4 {[%clk 00:14:55]} {[%emt 00:00:14]} 9. Bb5
{[%clk 00:12:59]} {[%emt 00:00:08]} O-O {[%clk 00:14:54]} {[%emt 00:00:05]} 10.
Bxc6 {[%clk 00:12:32]} {[%emt 00:00:32]} bxc6 {[%clk 00:14:54]} {[%emt
00:00:02]} 11. O-O {[%clk 00:11:08]} {[%emt 00:01:29]} Bxf3 {[%clk 00:14:25]}
{[%emt 00:00:34]} 12. Qxf3 {[%clk 00:09:15]} {[%emt 00:01:58]} Bxd4 {[%clk
00:14:21]} {[%emt 00:00:09]} 13. Rfd1 {[%clk 00:08:51]} {[%emt 00:00:29]} e5
{[%clk 00:14:13]} {[%emt 00:00:14]} 14. Bxd4 {[%clk 00:07:37]} {[%emt
00:01:19]} exd4 {[%clk 00:14:13]} {[%emt 00:00:03]} 15. Ne2 {[%clk 00:07:37]}
{[%emt 00:00:02]} c5 {[%clk 00:14:13]} {[%emt 00:00:04]} 16. Rac1 {[%clk
00:07:37]} {[%emt 00:00:02]} Qe7 {[%clk 00:14:12]} {[%emt 00:00:05]} 17. Qa3
{[%clk 00:07:08]} {[%emt 00:00:34]} Qxe4 {[%clk 00:13:38]} {[%emt 00:00:39]} 18.
Ng3 {[%clk 00:07:08]} {[%emt 00:00:01]} Qe6 {[%clk 00:13:08]} {[%emt 00:00:34]}
19. Rxc5 {[%clk 00:06:07]} {[%emt 00:01:07]} Rad8 {[%clk 00:12:54]} {[%emt
00:00:19]} 20. Rxc7 {[%clk 00:05:29]} {[%emt 00:00:44]} Nd5 {[%clk 00:11:18]}
{[%emt 00:01:40]} 21. Rxa7 {[%clk 00:03:40]} {[%emt 00:01:55]} Nf4 {[%clk
00:10:39]} {[%emt 00:00:44]} 22. Qf3 {[%clk 00:02:56]} {[%emt 00:00:49]} Qe5
{[%clk 00:10:09]} {[%emt 00:00:35]} 23. Qe4 {[%clk 00:02:52]} {[%emt 00:00:10]}
Qg5 {[%clk 00:09:16]} {[%emt 00:00:57]} 24. Ra4 {[%clk 00:02:14]} {[%emt
00:00:43]} Rfe8 {[%clk 00:09:10]} {[%emt 00:00:11]} 25. Qf3 {[%clk 00:02:14]}
{[%emt 00:00:04]} Qe5 {[%clk 00:08:38]} {[%emt 00:00:37]} 26. h4 {[%clk
00:01:45]} {[%emt 00:00:34]} Ne6 {[%clk 00:07:32]} {[%emt 00:01:11]} 27. Ra7
{[%clk 00:01:24]} {[%emt 00:00:26]} Nf4 {[%clk 00:07:05]} {[%emt 00:00:32]} 28.
Nf1 {[%clk 00:01:03]} {[%emt 00:00:25]} Re6 {[%clk 00:05:22]} {[%emt 00:01:48]}
29. Nd2 {[%clk 00:00:40]} {[%emt 00:00:28]} Rf6 {[%clk 00:04:38]} {[%emt
00:00:48]} 30. Qe4 {[%clk 00:00:40]} {[%emt 00:00:04]} Ne2+ {[%clk 00:04:18]}
{[%emt 00:00:25]} 31. Kh1 {[%clk 00:00:34]} {[%emt 00:00:11]} Qxe4 {[%clk
00:03:51]} {[%emt 00:00:32]} 32. Nxe4 {[%clk 00:00:34]} Rf4 {[%clk 00:03:51]}
33. Ng5 {[%clk 00:00:18]} {[%emt 00:00:22]} Rxh4+ {[%clk 00:03:31]} {[%emt
00:00:25]} 34. Nh3 {[%clk 00:00:18]} g5 {[%clk 00:03:31]} {[%emt 00:00:01]} 35.
Re7 {[%clk 00:00:18]} {[%emt 00:00:06]} Nf4 {[%clk 00:03:13]} {[%emt 00:00:23]}
36. Kg1 {[%clk 00:00:18]} Ng6 {[%clk 00:02:46]} {[%emt 00:00:32]} 37. Re2
{[%clk 00:00:15]} {[%emt 00:00:08]} h6 {[%clk 00:02:46]} {[%emt 00:00:03]} 38.
Red2 {[%clk 00:00:15]} {[%emt 00:00:02]} g4 {[%clk 00:02:46]} {[%emt 00:00:05]}
39. Rxd4 {[%clk 00:00:12]} {[%emt 00:00:09]} Rxd4 {[%clk 00:02:46]} 40. Rxd4
{[%clk 00:00:12]} gxh3 {[%clk 00:02:46]} {[%emt 00:00:01]} 41. Rd8+ {[%clk
00:00:09]} {[%emt 00:00:08]} Kg7 {[%clk 00:02:46]} {[%emt 00:00:02]} 42. gxh3
{[%clk 00:00:09]} {[%emt 00:00:03]} Rxh3 {[%clk 00:02:40]} {[%emt 00:00:11]} 43.
Kf1 {[%clk 00:00:09]} {[%emt 00:00:05]} Nf4 {[%clk 00:02:40]} {[%emt 00:00:01]}
44. Ke1 {[%clk 00:00:09]} Nd3+ {[%clk 00:02:40]} {[%emt 00:00:03]} 45. Ke2
{[%clk 00:00:09]} {[%emt 00:00:03]} Nxb2 {[%clk 00:02:40]} {[%emt 00:00:02]} 46.
Rd4 {[%clk 00:00:09]} {[%emt 00:00:01]} Ra3 {[%clk 00:02:40]} {[%emt 00:00:04]}
47. Rb4 {[%clk 00:00:09]} {[%emt 00:00:02]} Rxa2 {[%clk 00:02:40]} {[%emt
00:00:02]} 48. Kf3 {[%clk 00:00:09]} {[%emt 00:00:02]} Nd3 {[%clk 00:02:39]}
{[%emt 00:00:06]} 49. Rg4+ {[%clk 00:00:09]} {[%emt 00:00:03]} Kf6 {[%clk
00:02:39]} {[%emt 00:00:02]} 50. Rg2 {[%clk 00:00:09]} {[%emt 00:00:05]} Ne1+
{[%clk 00:02:39]} {[%emt 00:00:01]} 0-1